fUSD/lending_fUSD_20250610
["ID","MTS","AMOUNT","RATE_DAILY","PERIOD"]
[365213843,1749538233621,-490.0,0.00016438,2]
[365213845,1749538233630,-490.0,0.00016438,2]
[365213847,1749538233639,-490.0,0.00016438,2]
[365213849,1749538233649,-490.0,0.00016438,2]
[365213851,1749538233660,-490.0,0.00016438,2]
[365213853,1749538233670,-490.0,0.00016438,2]
[365213855,1749538233679,-490.0,0.00016438,2]
[365213857,1749538233689,-490.0,0.00016438,2]
[365213860,1749538233699,-728.09,0.00016438,2]
[365213862,1749538233708,-490.0,0.00016438,2]
[365213863,1749538233718,-490.0,0.00016438,2]
[365213866,1749538233727,-490.0,0.00016438,2]
[365213867,1749538233737,-490.0,0.00016438,2]
[365213870,1749538233747,-490.0,0.00016438,2]
[365213872,1749538233756,-490.0,0.00016438,2]
[365213873,1749538233766,-1092.92,0.00016438,2]
[365213875,1749538233775,-300.50129332,0.00016438,2]
[365213877,1749538233785,-463.3702502,0.00016438,2]
[365213879,1749538233794,-490.0,0.00016438,2]
[365213881,1749538233803,-490.0,0.00016438,2]
[365213883,1749538233812,-289.84428865,0.00016438,2]
[365213886,1749538233830,-200.15571135,0.00016438,2]
[365213888,1749538233839,-772.64482265,0.00016438,2]
[365213891,1749538233851,-388.60517735,0.00016438,2]
[365213892,1749538233861,-280.52979374,0.00016438,2]
[365213895,1749538233872,-209.47020626,0.00016438,2]
[365213896,1749538233882,-490.0,0.00016438,2]
[365213898,1749538233892,-490.0,0.00016438,2]
[365213900,1749538233902,-490.0,0.00016438,2]
[365213902,1749538233911,-490.0,0.00016438,2]
[365213904,1749538233920,-490.0,0.00016438,2]
[365213906,1749538233930,-490.0,0.00016438,2]
[365213908,1749538233939,-490.0,0.00016438,2]
[365213910,1749538233949,-480.0,0.00016438,2]
[365213912,1749538233958,-490.0,0.00016438,2]
[365213914,1749538233967,-490.0,0.00016438,2]
[365213916,1749538233976,-490.0,0.00016438,2]
[365213918,1749538233986,-490.0,0.00016438,2]
[365213920,1749538233995,-490.0,0.00016438,2]
[365213922,1749538234005,-490.0,0.00016438,2]
[365213924,1749538234015,-490.0,0.00016438,2]
[365213926,1749538234024,-490.0,0.00016438,2]
[365213928,1749538234033,-188.91772962,0.00016438,2]
[365213930,1749538234043,-542.69993108,0.00016438,2]
[365213932,1749538234052,-490.0,0.00016438,2]
[365213934,1749538234063,-1139.15,0.00016438,2]
[365213936,1749538234072,-490.0,0.00016438,2]
[365213938,1749538234082,-490.0,0.00016438,2]
[365213940,1749538234091,-490.0,0.00016438,2]
[365213942,1749538234101,-490.0,0.00016438,2]
[365213944,1749538234110,-490.0,0.00016438,2]
[365213946,1749538234120,-490.0,0.00016438,2]
[365213948,1749538234129,-490.0,0.00016438,2]
[365213950,1749538234138,-490.0,0.00016438,2]
[365213952,1749538234148,-490.0,0.00016438,2]
[365213954,1749538234157,-480.0,0.00016438,2]
[365213956,1749538234167,-490.0,0.00016438,2]
[365213958,1749538234176,-490.0,0.00016438,2]
[365213960,1749538234186,-490.0,0.00016438,2]
[365213962,1749538234195,-490.0,0.00016438,2]
[365213964,1749538234204,-490.0,0.00016438,2]
[365213965,1749538234213,-490.0,0.00016438,2]
[365213967,1749538234222,-196.31845329,0.00016438,2]
[365213969,1749538234232,-490.0,0.00016438,2]
[365213971,1749538234241,-490.0,0.00016438,2]
[365213973,1749538234250,-490.0,0.00016438,2]
[365213975,1749538234260,-490.0,0.00016438,2]
[365213977,1749538234270,-490.0,0.00016438,2]
[365213979,1749538234280,-490.0,0.00016438,2]
[365213981,1749538234289,-490.0,0.00016438,2]
[365213983,1749538234299,-490.0,0.00016438,2]
[365213985,1749538234309,-490.0,0.00016438,2]
[365213986,1749538234318,-198.32199055,0.00016438,2]
[365213989,1749538234330,-291.67800945,0.00016438,2]
[365213991,1749538234339,-490.0,0.00016438,2]
[365213993,1749538234348,-429.84009437,0.00016438,2]
[365214299,1749538237696,-60.15990563,0.00016438,2]
[365214301,1749538237706,-490.0,0.00016438,2]
[365214303,1749538237715,-490.0,0.00016438,2]
[365214305,1749538237724,-490.0,0.00016438,2]
[365214307,1749538237734,-490.0,0.00016438,2]
[365214309,1749538237743,-490.0,0.00016438,2]
[365214311,1749538237753,-490.0,0.00016438,2]
[365214313,1749538237762,-490.0,0.00016438,2]
[365214315,1749538237772,-490.0,0.00016438,2]
[365214317,1749538237781,-363.87588744,0.00016438,2]
[365214319,1749538237790,-490.0,0.00016438,2]
[365214321,1749538237799,-490.0,0.00016438,2]
[365214322,1749538237810,-490.0,0.00016438,2]
[365214323,1749538237820,-490.0,0.00016438,2]
[365214324,1749538237830,-490.0,0.00016438,2]
[365214325,1749538237840,-490.0,0.00016438,2]
[365214326,1749538237850,-490.0,0.00016438,2]
[365214327,1749538237859,-490.0,0.00016438,2]
[365214328,1749538237868,-490.0,0.00016438,2]
[365214329,1749538237878,-490.0,0.00016438,2]
[365214330,1749538237888,-490.0,0.00016438,2]
[365214331,1749538237899,-765.66,0.00016438,2]
[365214332,1749538237908,-490.0,0.00016438,2]
[365214333,1749538237918,-811.46,0.00016438,2]
[365214334,1749538237928,-490.0,0.00016438,2]
[365214335,1749538237939,-490.0,0.00016438,2]
[365214336,1749538237949,-490.0,0.00016438,2]
[365214337,1749538237961,-197.36504457,0.00016438,2]
[365214338,1749538237971,-490.0,0.00016438,2]
[365214339,1749538237980,-480.0,0.00016438,2]
[365214340,1749538237990,-1734.24,0.00016438,2]
[365214341,1749538238000,-490.0,0.00016438,2]
[365214342,1749538238010,-490.0,0.00016438,2]
[365214344,1749538238019,-490.0,0.00016438,2]
[365214346,1749538238029,-490.0,0.00016438,2]
[365214348,1749538238039,-490.0,0.00016438,2]
[365214350,1749538238048,-490.0,0.00016438,2]
[365214352,1749538238058,-490.0,0.00016438,2]
[365214354,1749538238067,-490.0,0.00016438,2]
[365214356,1749538238076,-490.0,0.00016438,2]
[365214358,1749538238086,-490.0,0.00016438,2]
[365214360,1749538238095,-490.0,0.00016438,2]
[365214362,1749538238105,-490.0,0.00016438,2]
[365214364,1749538238114,-490.0,0.00016438,2]
[365214366,1749538238123,-490.0,0.00016438,2]
[365214368,1749538238133,-490.0,0.00016438,2]
[365214370,1749538238142,-480.0,0.00016438,2]
[365214372,1749538238151,-253.07883278,0.00016438,2]
[365214374,1749538238161,-490.0,0.00016438,2]
[365214376,1749538238170,-490.0,0.00016438,2]
[365214378,1749538238179,-490.0,0.00016438,2]
[365214380,1749538238188,-490.0,0.00016438,2]
[365214382,1749538238198,-490.0,0.00016438,2]
[365214385,1749538238207,-1315.54,0.00016438,2]
[365214387,1749538238216,-490.0,0.00016438,2]
[365214389,1749538238226,-490.0,0.00016438,2]
[365214391,1749538238236,-490.0,0.00016438,2]
[365214393,1749538238245,-490.0,0.00016438,2]
[365214395,1749538238255,-490.0,0.00016438,2]
[365214397,1749538238264,-490.0,0.00016438,2]
[365214399,1749538238274,-589.81,0.00016438,2]
[365214401,1749538238286,-490.0,0.00016438,2]
[365214403,1749538238296,-490.0,0.00016438,2]
[365214405,1749538238306,-495.18,0.00016438,2]
[365214407,1749538238315,-490.0,0.00016438,2]
[365214409,1749538238325,-209.0,0.0001645,2]
[365214411,1749538238335,-151.0,0.00016457,2]
[365214413,1749538238344,-151.0,0.00016457,2]
[365214415,1749538238353,-151.0,0.00016457,2]
[365214417,1749538238362,-151.0,0.00016457,2]
[365214418,1749538238371,-151.0,0.00016457,2]
[365214420,1749538238381,-1935.5309,0.00016502,2]
[365214422,1749538238390,-2260.74129395,0.00016502,2]
[365214424,1749538238399,-164.73544592,0.00016502,2]
[365214425,1749538238409,-151.3025579,0.00016586,2]
[365214427,1749538238419,-208.0,0.00016593,3]
[365214429,1749538238429,-1934.28,0.000166,2]
[365214430,1749538238438,-701.11,0.00016601,2]
[365214431,1749538238448,-500.0,0.00016601,2]
[365214432,1749538238457,-490.0,0.00016602,2]
[365214433,1749538238467,-490.0,0.00016602,2]
[365214434,1749538238476,-490.0,0.00016602,2]
[365214435,1749538238486,-490.0,0.00016602,2]
[365214436,1749538238495,-490.0,0.00016602,2]
[365214437,1749538238505,-1286.62797,0.00016602,2]
[365214438,1749538238514,-490.0,0.00016602,2]
[365214439,1749538238524,-1489.23559,0.00016602,2]
[365214440,1749538238534,-378.749138,0.00016602,2]
[365214441,1749538238543,-490.0,0.00016602,2]
[365214442,1749538238552,-490.0,0.00016602,2]
[365214443,1749538238562,-490.0,0.00016602,2]
[365214444,1749538238572,-490.0,0.00016602,2]
[365214445,1749538238585,-490.0,0.00016602,2]
[365214446,1749538238594,-490.0,0.00016602,2]
[365214447,1749538238603,-490.0,0.00016602,2]
[365214448,1749538238613,-490.0,0.00016602,2]
[365214449,1749538238623,-490.0,0.00016602,2]
[365214450,1749538238633,-490.0,0.00016602,2]
[365214451,1749538238642,-490.0,0.00016602,2]
[365214452,1749538238654,-490.0,0.00016602,2]
[365214453,1749538238663,-490.0,0.00016602,2]
[365214454,1749538238673,-490.0,0.00016602,2]
[365214455,1749538238682,-490.0,0.00016602,2]
[365214456,1749538238691,-490.0,0.00016602,2]
[365214457,1749538238700,-490.0,0.00016602,2]
[365214458,1749538238710,-490.0,0.00016602,2]
[365214459,1749538238719,-554.88129489,0.00016602,2]
[365214460,1749538238728,-490.0,0.00016602,2]
[365214461,1749538238737,-490.0,0.00016602,2]
[365214462,1749538238747,-490.0,0.00016602,2]
[365214463,1749538238756,-490.0,0.00016602,2]
[365214464,1749538238765,-490.0,0.00016602,2]
[365214465,1749538238775,-490.0,0.00016602,2]
[365214466,1749538238784,-490.0,0.00016602,2]
[365214467,1749538238794,-490.0,0.00016602,2]
[365214468,1749538238804,-490.0,0.00016602,2]
[365214469,1749538238814,-490.0,0.00016602,2]
[365214470,1749538238823,-490.0,0.00016602,2]
[365214471,1749538238832,-490.0,0.00016602,2]
[365214472,1749538238842,-490.0,0.00016602,2]
[365214473,1749538238851,-490.0,0.00016602,2]
[365214474,1749538238861,-490.0,0.00016602,2]
[365214475,1749538238870,-490.0,0.00016602,2]
[365214476,1749538238880,-589.47213136,0.00016602,2]
[365214477,1749538238890,-503.98251487,0.00016602,2]
[365214478,1749538238900,-490.0,0.00016602,2]
[365214479,1749538238909,-1000.0,0.00016602,2]
[365214480,1749538238918,-490.0,0.00016602,2]
[365214481,1749538238928,-490.0,0.00016602,2]
[365214482,1749538238938,-490.0,0.00016602,2]
[365214484,1749538238948,-490.0,0.00016602,2]
[365214486,1749538238957,-0.28190962,0.00016602,2]
[365214488,1749538238971,-382.28674724,0.00016602,2]
[365214491,1749538238990,-107.43134314,0.00016602,2]
[365214493,1749538238999,-490.0,0.00016602,2]
[365214495,1749538239009,-88.32970776,0.00016602,2]
[365214504,1749538239094,-401.67029224,0.00016602,2]
[365214506,1749538239103,-490.0,0.00016602,2]
[365214508,1749538239112,-490.0,0.00016602,2]
[365214510,1749538239122,-490.0,0.00016602,2]
[365214512,1749538239131,-490.0,0.00016602,2]
[365214514,1749538239140,-490.0,0.00016602,2]
[365214516,1749538239150,-490.0,0.00016602,2]
[365214518,1749538239159,-385.0387124,0.00016602,2]
[365214520,1749538239167,-492.23939292,0.00016602,2]
[365214522,1749538239177,-490.0,0.00016602,2]
[365214524,1749538239186,-490.0,0.00016602,2]
[365214525,1749538239195,-490.0,0.00016602,2]
[365214526,1749538239204,-490.0,0.00016602,2]
[365214527,1749538239217,-490.0,0.00016602,2]
[365214528,1749538239228,-490.0,0.00016602,2]
[365214529,1749538239239,-490.0,0.00016602,2]
[365214530,1749538239249,-490.0,0.00016602,2]
[365214531,1749538239260,-490.0,0.00016602,2]
[365214532,1749538239270,-737.53,0.00016602,2]
[365214533,1749538239280,-490.0,0.00016602,2]
[365214534,1749538239291,-490.0,0.00016602,2]
[365214536,1749538239300,-490.0,0.00016602,2]
[365214538,1749538239309,-490.0,0.00016602,2]
[365214540,1749538239319,-490.0,0.00016602,2]
[365214542,1749538239329,-490.0,0.00016602,2]
[365214544,1749538239339,-490.0,0.00016602,2]
[365214546,1749538239348,-490.0,0.00016602,2]
[365214548,1749538239357,-490.0,0.00016602,2]
[365214550,1749538239366,-490.0,0.00016602,2]
[365214552,1749538239376,-490.0,0.00016602,2]
[365214554,1749538239386,-490.0,0.00016602,2]
[365214555,1749538239396,-490.0,0.00016602,2]
[365214557,1749538239406,-490.0,0.00016602,2]
[365214560,1749538239415,-490.0,0.00016602,2]
[365214561,1749538239425,-490.0,0.00016602,2]
[365214563,1749538239437,-493.52160244,0.00016602,2]
[365214566,1749538239450,-715.99839756,0.00016602,2]
[365214568,1749538239460,-93.43409197,0.00016602,2]
[365214570,1749538239471,-396.56590803,0.00016602,2]
[365214572,1749538239480,-490.0,0.00016602,2]
[365214574,1749538239489,-490.0,0.00016602,2]
[365214576,1749538239499,-490.0,0.00016602,2]
[365214578,1749538239508,-490.0,0.00016602,2]
[365214581,1749538239519,-490.0,0.00016602,2]
[365214583,1749538239530,-490.0,0.00016602,2]
[365214585,1749538239540,-490.0,0.00016602,2]
[365214587,1749538239550,-490.0,0.00016602,2]
[365214610,1749538239776,-490.0,0.00016602,2]
[365214612,1749538239787,-490.0,0.00016602,2]
[365214614,1749538239795,-490.0,0.00016602,2]
[365214616,1749538239805,-476.57968505,0.00016602,2]
[365214618,1749538239816,-490.0,0.00016602,2]
[365214620,1749538239825,-490.0,0.00016602,2]
[365214622,1749538239834,-292.5755717,0.00016602,2]
[365214624,1749538239843,-490.0,0.00016602,2]
[365214626,1749538239851,-490.0,0.00016602,2]
[365214628,1749538239861,-490.0,0.00016602,2]
[365214630,1749538239870,-490.0,0.00016602,2]
[365214632,1749538239879,-490.0,0.00016602,2]
[365214634,1749538239889,-304.27883522,0.00016602,2]
[365214645,1749538239987,-185.72116478,0.00016602,2]
[365214647,1749538239996,-490.0,0.00016602,2]
[365214649,1749538240005,-728.09,0.00016602,2]
[365214651,1749538240014,-490.0,0.00016602,2]
[365214653,1749538240024,-439.15535119,0.00016602,2]
[365214655,1749538240034,-490.0,0.00016602,2]
[365214657,1749538240043,-490.0,0.00016602,2]
[365214659,1749538240052,-490.0,0.00016602,2]
[365214661,1749538240062,-269.22947121,0.00016602,2]
[365214663,1749538240071,-1092.92,0.00016602,2]
[365214665,1749538240080,-490.0,0.00016602,2]
[365214667,1749538240090,-490.0,0.00016602,2]
[365214669,1749538240099,-432.36362145,0.00016602,2]
[365214671,1749538240108,-1161.25,0.00016602,2]
[365214673,1749538240117,-490.0,0.00016602,2]
[365214675,1749538240126,-490.0,0.00016602,2]
[365214677,1749538240135,-490.0,0.00016602,2]
[365214679,1749538240145,-459.72863107,0.00016602,2]
[365214681,1749538240154,-490.0,0.00016602,2]
[365214683,1749538240163,-490.0,0.00016602,2]
[365214685,1749538240172,-490.0,0.00016602,2]
[365214687,1749538240182,-490.0,0.00016602,2]
[365214689,1749538240191,-490.0,0.00016602,2]
[365214691,1749538240200,-490.0,0.00016602,2]
[365214693,1749538240209,-490.0,0.00016602,2]
[365214695,1749538240218,-490.0,0.00016602,2]
[365214697,1749538240228,-490.0,0.00016602,2]
[365214699,1749538240238,-490.0,0.00016602,2]
[365214701,1749538240247,-490.0,0.00016602,2]
[365214703,1749538240256,-490.0,0.00016602,2]
[365214705,1749538240266,-188.44270031,0.00016602,2]
[365214708,1749538240286,-301.55729969,0.00016602,2]
[365214710,1749538240298,-1139.15,0.00016602,2]
[365214712,1749538240307,-416.67577109,0.00016602,2]
[365214714,1749538240319,-73.32422891,0.00016602,2]
[365214716,1749538240329,-638.91753859,0.00016602,2]
[365214718,1749538240339,-383.9582325,0.00016602,2]
[365214721,1749538240354,-106.0417675,0.00016602,2]
[365214723,1749538240364,-490.0,0.00016602,2]
[365214725,1749538240374,-490.0,0.00016602,2]
[365214727,1749538240385,-85.03590047,0.00016602,2]
[365214729,1749538240397,-404.96409953,0.00016602,2]
[365214731,1749538240406,-490.0,0.00016602,2]
[365214733,1749538240415,-490.0,0.00016602,2]
[365214735,1749538240425,-490.0,0.00016602,2]
[365214737,1749538240434,-470.0,0.00016602,2]
[365214739,1749538240444,-490.0,0.00016602,2]
[365214741,1749538240454,-490.0,0.00016602,2]
[365214744,1749538240463,-490.0,0.00016602,2]
[365214746,1749538240473,-490.0,0.00016602,2]
[365214747,1749538240482,-490.0,0.00016602,2]
[365214749,1749538240494,-490.0,0.00016602,2]
[365214751,1749538240505,-490.0,0.00016602,2]
[365214754,1749538240515,-490.0,0.00016602,2]
[365214756,1749538240525,-490.0,0.00016602,2]
[365214757,1749538240535,-490.0,0.00016602,2]
[365214759,1749538240544,-490.0,0.00016602,2]
[365214761,1749538240554,-524.19,0.00016602,2]
[365214763,1749538240563,-490.0,0.00016602,2]
[365214766,1749538240573,-490.0,0.00016602,2]
[365214767,1749538240587,-490.0,0.00016602,2]
[365214769,1749538240596,-490.0,0.00016602,2]
[365214771,1749538240607,-123.70450874,0.00016602,2]
[365214775,1749538240634,-366.29549126,0.00016602,2]
[365214777,1749538240643,-39.60184883,0.00016602,2]
[365214779,1749538240656,-450.39815117,0.00016602,2]
[365214781,1749538240666,-490.0,0.00016602,2]
[365214783,1749538240675,-490.0,0.00016602,2]
[365214785,1749538240684,-490.0,0.00016602,2]
[365214787,1749538240694,-490.0,0.00016602,2]
[365214789,1749538240703,-490.0,0.00016602,2]
[365214791,1749538240712,-153.62,0.00016602,2]
[365214793,1749538240721,-490.0,0.00016602,2]
[365214795,1749538240731,-282.64940281,0.00016602,2]
[365214797,1749538240740,-490.0,0.00016602,2]
[365214799,1749538240749,-490.0,0.00016602,2]
[365214801,1749538240758,-490.0,0.00016602,2]
[365214803,1749538240768,-490.0,0.00016602,2]
[365214805,1749538240777,-490.0,0.00016602,2]
[365214807,1749538240787,-490.0,0.00016602,2]
[365214809,1749538240796,-490.0,0.00016602,2]
[365214811,1749538240806,-490.0,0.00016602,2]
[365214813,1749538240815,-490.0,0.00016602,2]
[365214815,1749538240825,-490.0,0.00016602,2]
[365214817,1749538240835,-765.66,0.00016602,2]
[365214819,1749538240844,-490.0,0.00016602,2]
[365214821,1749538240854,-643.10746587,0.00016602,2]
[365214823,1749538240866,-168.35253413,0.00016602,2]
[365214825,1749538240875,-490.0,0.00016602,2]
[365214827,1749538240885,-490.0,0.00016602,2]
[365214829,1749538240895,-490.0,0.00016602,2]
[365214831,1749538240904,-490.0,0.00016602,2]
[365214833,1749538240914,-1734.24,0.00016602,2]
[365214835,1749538240923,-623.25,0.00016602,2]
[365214837,1749538240932,-490.0,0.00016602,2]
[365214839,1749538240941,-490.0,0.00016602,2]
[365214841,1749538240950,-490.0,0.00016602,2]
[365214843,1749538240959,-490.0,0.00016602,2]
[365214845,1749538240968,-490.0,0.00016602,2]
[365214847,1749538240977,-490.0,0.00016602,2]
[365214849,1749538240987,-490.0,0.00016602,2]
[365214851,1749538240995,-490.0,0.00016602,2]
[365214853,1749538241005,-490.0,0.00016602,2]
[365214855,1749538241014,-490.0,0.00016602,2]
[365214857,1749538241023,-490.0,0.00016602,2]
[365214859,1749538241032,-490.0,0.00016602,2]
[365214861,1749538241042,-490.0,0.00016602,2]
[365214863,1749538241051,-490.0,0.00016602,2]
[365214865,1749538241060,-490.0,0.00016602,2]
[365214867,1749538241070,-490.0,0.00016602,2]
[365214869,1749538241079,-490.0,0.00016602,2]
[365214871,1749538241088,-1315.54,0.00016602,2]
[365214873,1749538241097,-490.0,0.00016602,2]
[365214875,1749538241106,-490.0,0.00016602,2]
[365214877,1749538241115,-490.0,0.00016602,2]
[365214879,1749538241124,-490.0,0.00016602,2]
[365214881,1749538241133,-490.0,0.00016602,2]
[365214883,1749538241142,-490.0,0.00016602,2]
[365214884,1749538241151,-490.0,0.00016602,2]
[365214886,1749538241160,-589.81,0.00016602,2]
[365214888,1749538241169,-490.0,0.00016602,2]
[365214890,1749538241179,-490.0,0.00016602,2]
[365214892,1749538241187,-495.18,0.00016602,2]
[365214894,1749538241197,-288.60306314,0.00016602,2]
[365214896,1749538241206,-150.0,0.00016603,2]
[365214898,1749538241216,-160.86265002,0.00016603,2]
[365214900,1749538241226,-600.0,0.00016608,2]
[365214902,1749538241235,-250.0,0.00016617,2]
[365214904,1749538241244,-150.0,0.0001663,2]
[365214906,1749538241254,-150.0,0.00016658,2]
[365214908,1749538241263,-209.0,0.0001668,2]
[365214910,1749538241272,-150.0,0.00016685,2]
[365214912,1749538241281,-1397.0,0.00016696,2]
[365214914,1749538241291,-328.47,0.000167,2]
[365214916,1749538241300,-163.3,0.000167,2]
[365214918,1749538241310,-326.6,0.000167,2]
[365214920,1749538241320,-163.33,0.000167,2]
[365214922,1749538241329,-150.0,0.00016713,2]
[365214924,1749538241339,-6528.49294189,0.00016734,2]
[365214926,1749538241349,-234.96600306,0.0001674,2]
[365214928,1749538241358,-6202.38481076,0.0001674,2]
[365214930,1749538241367,-1397.0,0.0001675,2]
[365214932,1749538241376,-500.0,0.00016766,2]
[365214934,1749538241386,-234.03332209,0.00016767,2]
[365214935,1749538241395,-460.0,0.00016767,2]
[365214937,1749538241405,-188.54872478,0.00016767,2]
[365214939,1749538241414,-490.0,0.00016767,2]
[365214941,1749538241424,-490.0,0.00016767,2]
[365214944,1749538241433,-524.32347376,0.00016767,2]
[365214945,1749538241443,-490.0,0.00016767,2]
[365214947,1749538241453,-490.0,0.00016767,2]
[365214949,1749538241462,-490.0,0.00016767,2]
[365214951,1749538241472,-490.0,0.00016767,2]
[365214953,1749538241482,-608.58004543,0.00016767,2]
[365214955,1749538241491,-599.02553478,0.00016767,2]
[365214957,1749538241501,-490.0,0.00016767,2]
[365214959,1749538241511,-367.26363501,0.00016767,2]
[365214961,1749538241520,-490.0,0.00016767,2]
[365214963,1749538241530,-490.0,0.00016767,2]
[365214965,1749538241540,-490.0,0.00016767,2]
[365214967,1749538241549,-490.0,0.00016767,2]
[365214969,1749538241559,-490.0,0.00016767,2]
[365214972,1749538241569,-490.0,0.00016767,2]
[365214973,1749538241580,-490.0,0.00016767,2]
[365214976,1749538241592,-490.0,0.00016767,2]
[365214977,1749538241601,-165.20279475,0.00016767,2]
[365214979,1749538241611,-490.0,0.00016767,2]
[365214981,1749538241622,-490.0,0.00016767,2]
[365214984,1749538241631,-54.69230932,0.00016767,2]
[365214987,1749538241660,-435.30769068,0.00016767,2]
[365214989,1749538241670,-477.99530932,0.00016767,2]
[365214992,1749538241680,-12.00469068,0.00016767,2]
[365214994,1749538241690,-490.0,0.00016767,2]
[365214995,1749538241699,-490.0,0.00016767,2]
[365214997,1749538241708,-490.0,0.00016767,2]
[365214999,1749538241717,-460.90234272,0.00016767,2]
[365215012,1749538241839,204.28006,0.00015237,2]
[365215106,1749538242860,-490.0,0.00016438,2]
[365215107,1749538242869,-29.09765728,0.00016767,2]
[365215108,1749538242878,-41.61795084,0.00016767,2]
[365215109,1749538242889,-448.38204916,0.00016767,2]
[365215110,1749538242898,-490.0,0.00016767,2]
[365215111,1749538242907,-61.61795084,0.00016767,2]
[365215112,1749538242923,-428.38204916,0.00016767,2]
[365215113,1749538242931,-31.14679148,0.00016767,2]
[365215114,1749538242947,-458.85320852,0.00016767,2]
[365215115,1749538242956,-157.34053545,0.00016767,2]
[365215116,1749538242968,-490.0,0.00016767,2]
[365215117,1749538242980,-185.9821133,0.00016767,2]
[365215118,1749538243045,-489.34833737,0.00016602,2]
[365215119,1749538243057,-304.0178867,0.00016767,2]
[365215120,1749538243067,-490.0,0.00016767,2]
[365215121,1749538243078,-490.0,0.00016767,2]
[365215122,1749538243089,-490.0,0.00016767,2]
[365215123,1749538243101,-1000.0,0.00016767,2]
[365215124,1749538243113,-187.72518962,0.00016767,2]
[365215125,1749538243127,-302.27481038,0.00016767,2]
[365215126,1749538243139,-124.78670962,0.00016767,2]
[365215127,1749538243153,-365.21329038,0.00016767,2]
[365215128,1749538243165,-490.0,0.00016767,2]
[365215129,1749538243177,-324.8,0.00016767,2]
[365215130,1749538243188,-460.98670962,0.00016767,2]
[365215131,1749538243202,-29.01329038,0.00016767,2]
[365215133,1749538243212,-490.0,0.00016767,2]
[365215134,1749538243224,-309.05616703,0.00016767,2]
[365215135,1749538243234,-490.0,0.00016767,2]
[365215136,1749538243246,-490.0,0.00016767,2]
[365215137,1749538243259,-350.85579478,0.00016767,2]
[365215138,1749538243278,-139.14420522,0.00016767,2]
[365215139,1749538243290,-490.0,0.00016767,2]
[365215140,1749538243302,-490.0,0.00016767,2]
[365215141,1749538243314,-490.0,0.00016767,2]
[365215142,1749538243326,-490.0,0.00016767,2]
[365215143,1749538243339,-490.0,0.00016767,2]
[365215144,1749538243351,-221.61349284,0.00016767,2]
[365215145,1749538243365,-275.20022551,0.00016767,2]
[365215146,1749538243376,-490.0,0.00016767,2]
[365215147,1749538243389,-490.0,0.00016767,2]
[365215148,1749538243402,-490.0,0.00016767,2]
[365215149,1749538243413,-490.0,0.00016767,2]
[365215150,1749538243425,-492.19,0.00016767,2]
[365215151,1749538243438,-490.0,0.00016767,2]
[365215152,1749538243450,-369.31999739,0.00016767,2]
[365215161,1749538245828,-490.0,0.00016438,2]
[365215162,1749538245840,-490.0,0.00016602,2]
[365215163,1749538245851,-368.21000261,0.00016767,2]
[365215164,1749538245863,-490.0,0.00016767,2]
[365215165,1749538245875,-151.90511032,0.00016767,2]